bitfinex/quotes_ETHUSD_20241120
["timestamp","ask_amount","ask_price","bid_price","bid_amount"]
[1732137737548,0.45729636,3068.8,3067.8,6.80957]
[1732137737832,0.45729636,3069.1,3067.6,0.8003]
[1732137737976,0.45729636,3069.1,3067.3,3.0]
[1732137737977,3.25969,3067.8,3067.3,3.0]
[1732137738334,6.39,3068.1,3066.8,3.0]
[1732137738642,3.71707636,3067.7,3066.6,0.8003]
[1732137738776,6.51932,3067.8,3066.6,0.8003]
[1732137739119,3.26021,3067.3,3066.6,0.8003]
[1732137739432,3.26021,3067.3,3066.6,4.06123]
[1732137739596,3.987792,3067.7,3067.0,3.26044]
[1732137739780,3.25979,3067.7,3067.0,3.26044]
[1732137739983,3.25997,3067.6,3066.9,3.2606]
[1732137740234,3.2599,3067.6,3067.0,0.55]
[1732137740447,3.2604,3067.1,3066.6,0.8003]
[1732137740593,3.26022,3067.3,3066.7,3.26076]
[1732137740793,3.25966,3067.8,3066.9,3.26055]
[1732137741024,3.25927,3068.2,3066.6,3.8003]
[1732137741333,3.26071,3066.9,3066.6,0.8003]
[1732137741479,0.7821,3067.8,3066.6,0.8003]
[1732137741848,3.26042,3067.1,3066.6,3.8003]
[1732137741975,3.2607,3066.9,3066.6,0.8003]
[1732137742177,3.26081,3066.8,3066.6,0.8003]
[1732137742426,3.26081,3066.8,3066.0,3.26153]
[1732137742427,3.26062,3066.9,3066.0,0.7811]
[1732137742621,3.26127,3066.3,3066.0,0.7811]
[1732137742982,3.26178,3065.9,3065.6,0.7532]
[1732137743184,3.26231,3065.4,3065.0,0.7532]
[1732137743414,3.2624,3065.3,3065.0,0.7532]
[1732137743690,0.326178,3065.8,3065.2,3.26236]
[1732137743889,0.7617,3066.2,3065.0,0.7532]
[1732137744112,6.52346,3065.9,3065.1,3.26245]
[1732137744352,0.7617,3066.2,3065.0,3.7532]
[1732137744560,3.26253,3065.1,3065.0,0.7532]
[1732137745084,3.26215,3065.5,3065.0,0.7532]
[1732137745217,3.26253,3065.1,3064.5,0.757]
[1732137745412,3.26238,3065.3,3064.5,4.02015]
[1732137745615,3.26257,3065.1,3064.5,4.02015]
[1732137745912,3.26238,3065.3,3064.6,3.0]
[1732137746112,3.26264,3065.0,3064.5,0.757]
[1732137746363,0.4504598,3066.1,3063.9,0.757]
[1732137746364,3.26316,3064.6,3063.9,0.757]
[1732137746595,3.26324,3064.5,3063.9,0.757]
[1732137746719,3.26335,3064.4,3063.9,0.757]
[1732137747065,3.26279,3064.9,3063.9,0.757]
[1732137747265,3.26294,3064.8,3064.1,3.26353]
[1732137747427,3.26308,3064.6,3064.1,0.402053]
[1732137747627,0.8008,3065.3,3064.0,0.55]
[1732137747846,3.26263,3065.1,3064.5,0.55]
[1732137748049,3.262,3065.6,3064.6,0.757]
[1732137748225,9.65179,3065.8,3064.7,0.55]
[1732137748226,3.26218,3065.5,3064.7,0.55]
[1732137748430,3.26218,3065.5,3064.9,3.55]
[1732137748725,4.06217,3066.2,3065.1,3.55]
[1732137748726,3.26196,3065.7,3065.1,3.55]
[1732137748989,0.45126298,3066.0,3064.6,4.01997]
[1732137749141,3.26226,3065.4,3064.7,6.81287]
[1732137749550,3.26164,3066.0,3065.2,3.26237]
[1732137749877,3.26159,3066.0,3065.5,4.307]
[1732137750180,0.83000551,3066.8,3065.7,0.55]
[1732137750181,3.26118,3066.4,3065.7,0.55]
[1732137750332,3.26096,3066.6,3066.0,0.55]
[1732137750537,3.26068,3066.9,3065.9,3.55]
[1732137750732,3.26074,3066.8,3066.2,3.0]
[1732137750969,3.26074,3066.8,3065.9,0.93761263]
[1732137750970,3.26094,3066.6,3066.3,0.55]
[1732137751470,3.26041,3067.1,3066.4,0.757]
[1732137751631,3.26049,3067.1,3066.5,0.55]
[1732137751831,6.39,3067.5,3066.5,3.81096]
[1732137752025,6.39,3067.5,3066.6,6.26093]
[1732137752026,3.2604,3067.2,3066.6,6.26093]
[1732137752255,3.97919,3067.4,3066.8,3.26071]
[1732137752480,3.97919,3067.4,3066.7,0.55]
[1732137752481,3.25991,3067.6,3066.7,3.81074]
[1732137752631,0.757,3068.0,3066.9,0.55]
[1732137752840,3.26026,3067.3,3066.9,0.55]
[1732137753084,3.2599,3067.6,3067.0,3.2605]
[1732137753382,3.2599,3067.6,3067.1,3.55]
[1732137753608,3.911866,3067.6,3067.1,3.55]
[1732137753784,3.26001,3067.5,3067.1,0.55]
[1732137754085,3.911876,3067.6,3067.1,0.55]
[1732137754251,3.26009,3067.4,3066.8,3.81065]
[1732137754587,3.26059,3067.0,3066.5,3.0]
[1732137754805,3.2609,3066.7,3066.4,0.757]
[1732137754964,3.26116,3066.4,3066.0,0.8251]
[1732137755282,3.26051,3067.0,3066.0,0.8251]
[1732137755483,7.1719,3067.6,3066.1,0.10180757]
[1732137755687,3.26056,3067.0,3066.2,0.10180757]
[1732137755998,3.26018,3067.4,3066.7,3.26074]
[1732137756201,3.25999,3067.5,3066.9,3.81062]
[1732137756898,3.25999,3067.5,3066.9,4.3194]
[1732137757105,3.25989,3067.6,3067.0,3.26044]
[1732137757246,0.325982,3067.6,3066.9,0.7694]
[1732137757446,3.26039,3067.2,3066.5,0.55]
[1732137757675,3.25986,3067.7,3066.8,3.2607]
[1732137757874,3.25981,3067.7,3066.9,3.55]
[1732137758206,0.325981,3067.7,3066.9,0.55]
[1732137758510,3.25987,3067.6,3067.0,0.55]
[1732137758650,3.25968,3067.8,3067.0,3.55]
[1732137759050,3.25957,3067.9,3067.4,3.26008]
[1732137759179,7.029,3068.2,3067.4,3.26002]
[1732137759382,3.89828,3068.2,3067.5,3.55]
[1732137759584,3.89828,3068.2,3067.6,3.25982]
[1732137759890,3.25883,3068.6,3067.8,3.80958]
[1732137760092,3.25883,3068.6,3068.0,0.75]
[1732137760293,3.25883,3068.6,3068.0,4.00936]
[1732137760457,3.71736392,3068.8,3068.0,4.00936]
[1732137760661,3.25869,3068.8,3068.0,4.00936]
[1732137760859,3.25882,3068.6,3068.0,4.00936]
[1732137761092,3.25882,3068.6,3068.1,3.0]
[1732137761277,0.50338919,3068.9,3068.0,0.75]
[1732137761471,0.50338919,3068.9,3067.8,0.55]
[1732137761671,3.2593,3068.2,3067.7,0.55]
[1732137761870,3.911136,3068.2,3067.7,0.55]
[1732137762197,3.25915,3068.3,3067.8,3.0]
[1732137762400,0.50338919,3068.9,3067.8,0.03259542]
[1732137762401,3.25883,3068.6,3067.8,0.03259542]
[1732137762593,3.25883,3068.6,3068.0,3.0]
[1732137762594,3.25887,3068.6,3068.0,3.0]
[1732137762807,3.25887,3068.6,3068.0,6.25944]
[1732137762997,3.25841,3069.0,3068.4,3.259]
[1732137763196,3.25841,3069.0,3068.5,0.55]
[1732137763398,1.41674925,3069.4,3068.5,0.55]
[1732137763399,3.25808,3069.3,3068.7,3.25866]
[1732137763603,3.25828,3069.1,3068.7,0.55]
[1732137763981,3.25808,3069.3,3068.7,0.55]
[1732137764183,3.25818,3069.2,3068.7,0.55]
[1732137764419,3.25828,3069.1,3068.7,0.55]
[1732137764913,3.25813,3069.3,3068.6,3.25872]
[1732137765114,1.0162833,3069.6,3068.7,0.55]
[1732137765277,3.25825,3069.2,3068.7,0.55]
[1732137765481,3.25825,3069.2,3068.6,3.80875]
[1732137765711,3.25807,3069.3,3068.7,3.25861]
[1732137766009,3.25799,3069.4,3068.7,3.25861]
[1732137766010,3.25799,3069.4,3068.8,0.55]
[1732137766197,3.25819,3069.2,3068.8,0.55]
[1732137766376,3.25829,3069.1,3068.7,0.55]
[1732137766572,3.25819,3069.2,3068.7,3.55]
[1732137766815,3.25799,3069.4,3068.7,3.55]
[1732137767121,3.25777,3069.6,3069.0,0.7714]
[1732137767422,3.25777,3069.6,3069.0,3.7714]
[1732137767623,3.25777,3069.6,3068.6,0.7714]
[1732137767624,3.25853,3068.9,3068.6,0.7714]
[1732137767779,3.2587,3068.7,3068.6,0.7714]
[1732137767980,3.25911,3068.4,3068.2,0.7714]
[1732137768316,3.25885,3068.6,3067.8,4.09246]
[1732137768611,3.25885,3068.6,3068.0,3.25944]
[1732137768786,3.25885,3068.6,3067.9,3.25947]
[1732137768992,3.25885,3068.6,3068.0,3.25937]
[1732137769387,3.25796,3069.4,3068.2,3.0]
[1732137769719,3.25883,3068.6,3068.2,3.0]
[1732137769917,3.25862,3068.8,3068.0,3.0]
[1732137770090,3.25862,3068.8,3068.2,3.0]
[1732137770296,6.51731,3068.8,3068.2,3.0]
[1732137770502,0.50338919,3069.4,3068.3,0.55]
[1732137770807,0.7829,3069.5,3068.3,0.55]
[1732137770808,3.25821,3069.2,3068.6,0.8329]
[1732137770994,3.25856,3068.9,3068.7,0.55]
[1732137771201,3.25834,3069.1,3068.7,0.55]
[1732137771396,0.7829,3069.5,3068.1,0.8329]
[1732137771397,3.25909,3068.4,3068.1,0.8329]
[1732137771597,3.25902,3068.4,3068.1,0.8329]
[1732137771783,3.25881,3068.7,3068.1,3.8329]
[1732137771988,3.25881,3068.7,3068.1,0.8329]
[1732137771989,3.25923,3068.2,3068.1,0.8329]
[1732137772184,3.25976,3067.8,3067.6,0.8329]
[1732137772455,0.7829,3068.6,3066.9,0.8329]
[1732137772456,3.26014,3067.4,3066.9,0.8329]
[1732137772590,4.12120249,3068.5,3066.9,1.242261]
[1732137772785,3.25995,3067.6,3066.9,1.242261]
[1732137772990,8.06733659,3068.6,3066.9,1.242261]
[1732137772991,3.25983,3067.7,3067.1,3.26032]
[1732137773214,3.25944,3068.1,3067.0,0.03260117]
[1732137773486,3.25942,3068.1,3067.4,3.25999]
[1732137773690,7.5639474,3068.6,3067.3,3.0]
[1732137773936,8.06733659,3068.6,3067.1,6.26036]
[1732137774225,3.25956,3067.9,3067.4,3.0]
[1732137774790,3.25935,3068.1,3067.4,3.626013]
[1732137775002,7.5639474,3068.6,3067.5,0.55]
[1732137775003,3.25963,3067.9,3067.5,0.55]
[1732137775189,3.25954,3068.0,3067.3,3.81018]
[1732137775411,3.25902,3068.4,3067.5,0.55]
[1732137775412,3.25957,3067.9,3067.5,0.55]
[1732137775617,3.26019,3067.3,3066.8,3.26072]
[1732137775813,0.50338919,3068.4,3066.7,3.26075]
[1732137775814,3.26012,3067.4,3066.7,3.26075]
[1732137776225,3.26009,3067.4,3066.7,3.26079]
[1732137776428,3.25913,3068.3,3066.1,0.03260366]
[1732137776595,3.25913,3068.3,3066.5,3.26098]
[1732137776596,3.2602,3067.3,3066.5,3.26098]
[1732137776796,3.26039,3067.2,3066.6,3.26093]
[1732137777002,3.26039,3067.2,3066.0,7.40274249]
[1732137777003,3.26043,3067.1,3066.5,3.26097]
[1732137777205,3.26022,3067.3,3066.7,3.26074]
[1732137777426,3.26,3067.5,3066.8,3.26071]
[1732137777631,0.7829,3067.8,3066.6,3.2609]
[1732137777833,3.26031,3067.2,3066.6,3.2609]
[1732137778034,3.26031,3067.2,3066.7,3.0]
[1732137778238,0.50338919,3067.6,3066.5,0.8329]
[1732137778446,3.26058,3067.0,3066.5,0.8329]
[1732137778602,3.26079,3066.8,3066.5,0.8329]
[1732137778801,3.26058,3067.0,3066.5,0.8329]
[1732137779051,3.26036,3067.2,3066.5,1.242302]
[1732137779325,3.25991,3067.6,3067.0,3.26044]
[1732137779528,3.26027,3067.3,3067.0,0.326044]
[1732137779713,3.26027,3067.3,3067.0,0.55]
[1732137779906,3.26003,3067.5,3067.0,3.55]
[1732137780407,3.25941,3068.1,3067.6,0.55]
[1732137780724,3.25945,3068.1,3067.6,0.55]
[1732137781243,1.83776999,3069.0,3068.0,0.7938]
[1732137781431,1.83776999,3069.0,3067.5,0.7938]
[1732137781432,3.25983,3067.7,3067.5,0.7938]
[1732137781641,3.25952,3068.0,3067.6,0.55]
[1732137781818,3.25926,3068.2,3067.6,0.55]
[1732137782134,3.25926,3068.2,3067.6,3.55]
[1732137782333,3.25926,3068.2,3067.6,6.80986]
[1732137782514,3.25926,3068.2,3067.6,4.636363]
[1732137782915,3.25945,3068.0,3067.6,4.636363]
[1732137783445,3.25926,3068.2,3067.6,3.55]
[1732137783737,0.96425802,3068.9,3067.7,0.03259683]
[1732137783923,3.2592,3068.3,3067.8,3.25958]
[1732137784240,3.25902,3068.4,3067.8,3.25962]
[1732137784437,0.3229498,3068.8,3067.8,3.25962]
[1732137784744,3.25876,3068.7,3068.2,0.8288]
[1732137784919,3.25887,3068.6,3068.2,0.8288]
[1732137785116,3.25941,3068.1,3067.8,0.8288]
[1732137785320,3.584707,3068.6,3067.5,0.55]
[1732137785321,3.25945,3068.0,3067.5,0.55]
[1732137785520,3.25945,3068.0,3067.6,0.10175496]
[1732137785719,3.25945,3068.0,3067.5,3.55]
[1732137785919,3.25957,3067.9,3067.6,0.1017577]
[1732137786137,0.325887,3068.6,3067.7,0.55]
[1732137786466,3.25884,3068.6,3067.8,0.10175442]
[1732137786742,3.25909,3068.4,3067.8,3.25965]
[1732137786939,3.25909,3068.4,3067.8,6.25965]
[1732137787141,3.2591,3068.4,3067.8,6.25965]
[1732137787331,4.09164,3068.7,3067.7,3.0]
[1732137787534,3.25932,3068.2,3067.7,3.55]
[1732137787848,3.25896,3068.5,3067.8,0.10175792]
[1732137788048,4.02421,3069.0,3067.8,3.25964]
[1732137788049,3.25921,3068.3,3067.8,3.25964]
[1732137788346,3.25893,3068.5,3068.0,3.25939]
[1732137788646,3.25904,3068.4,3068.1,0.8328]
[1732137788845,3.25902,3068.4,3067.8,0.8328]
[1732137789084,3.25889,3068.6,3068.0,6.25944]
[1732137789211,0.50338919,3069.2,3068.0,6.25944]
[1732137789212,9.64798,3069.4,3068.1,0.55]
[1732137789546,4.523921,3069.3,3068.5,3.25884]
[1732137789720,3.25807,3069.3,3068.7,3.25868]
[1732137789927,3.25795,3069.5,3068.8,3.25851]
[1732137790342,3.25795,3069.5,3068.9,3.36014653]
[1732137790672,3.71817883,3070.1,3068.9,3.36014653]
[1732137790673,3.25727,3070.1,3069.3,3.55]
[1732137790975,3.76077919,3070.0,3069.4,3.25789]
[1732137791133,3.25731,3070.1,3069.5,3.25779]
[1732137791533,3.2568,3070.5,3069.8,3.25753]
[1732137791728,3.2568,3070.5,3069.5,1.03914579]
[1732137791729,3.25691,3070.4,3069.9,4.08703]
[1732137792273,8.30920551,3071.3,3070.1,3.25712]
[1732137792274,0.8008,3071.2,3070.1,3.25712]
[1732137792563,3.25631,3071.0,3070.2,3.80709]
[1732137792766,3.25638,3070.9,3070.3,3.25698]
[1732137792968,3.25648,3070.8,3070.2,3.55]
[1732137793530,3.25661,3070.7,3070.2,3.55]
[1732137793752,3.25648,3070.8,3070.2,3.55]
[1732137793931,3.25658,3070.7,3070.2,3.55]
[1732137794269,0.4989143,3071.0,3070.2,6.80704]
[1732137794270,3.7552243,3071.0,3070.2,6.80704]
[1732137794429,3.25652,3070.8,3070.2,3.55]
[1732137794640,3.25652,3070.8,3070.1,0.55]
[1732137794834,3.25675,3070.6,3070.1,0.55]
[1732137795033,3.25652,3070.8,3070.1,0.55]
[1732137795238,3.25643,3070.9,3070.2,3.25703]
[1732137795465,3.25616,3071.1,3070.1,3.0]
[1732137795632,3.2568,3070.5,3070.0,0.55]
[1732137795831,3.2568,3070.5,3070.0,3.55]
[1732137796031,3.25662,3070.7,3070.2,0.55]
[1732137796465,3.2567,3070.6,3070.2,0.55]
[1732137796790,3.25663,3070.7,3070.0,3.80731]
[1732137796935,6.51271,3071.0,3070.4,3.25689]
[1732137797128,3.25649,3070.8,3070.2,3.80704]
[1732137797329,1.25136883,3071.5,3070.2,0.55]
[1732137797330,3.25659,3070.7,3070.2,0.55]
[1732137797534,3.25714,3070.2,3069.9,0.8296]
[1732137797992,3.25732,3070.0,3069.9,0.8296]
[1732137798140,0.325659,3070.7,3069.9,0.8296]
[1732137798141,3.25695,3070.4,3069.9,0.8296]
[1732137798335,3.25615,3071.2,3070.0,3.25724]
[1732137798561,3.25615,3071.2,3070.1,3.0]
[1732137798562,0.37273142,3071.1,3070.1,3.0]
[1732137798954,0.37273142,3071.1,3069.9,3.8296]
[1732137799253,3.25701,3070.3,3069.9,0.8296]
[1732137799546,3.25668,3070.7,3069.9,0.8296]
[1732137799874,3.25641,3070.9,3070.2,3.25702]
[1732137800034,3.25616,3071.1,3070.5,3.0]
[1732137800235,7.1939,3071.7,3070.8,3.25646]
[1732137800236,6.51158,3071.5,3070.8,3.25646]
[1732137800451,12.90117,3071.7,3070.9,0.03256259]
[1732137800652,3.2558,3071.5,3071.0,0.55]
[1732137800842,3.25555,3071.7,3071.0,3.8062]
[1732137801033,6.91664,3071.9,3071.1,3.25615]
[1732137801238,3.25521,3072.0,3071.4,3.25583]
[1732137801438,3.25457,3072.6,3071.8,3.25535]
[1732137801679,3.25457,3072.6,3072.1,0.55]
[1732137801973,3.25481,3072.4,3071.9,0.55]
[1732137802176,3.25481,3072.4,3071.6,3.25561]
[1732137802177,3.25481,3072.4,3071.7,3.55]
[1732137802341,0.47116419,3072.8,3072.0,3.80519]
[1732137802342,3.72555419,3072.8,3072.0,3.80519]
[1732137802538,3.25458,3072.6,3072.1,0.55]
[1732137802738,3.25486,3072.4,3072.0,0.55]
[1732137802936,3.25486,3072.4,3071.6,3.0]
[1732137802937,3.72602419,3072.4,3071.6,3.0]
[1732137803163,3.25502,3072.2,3071.7,0.55]
[1732137803474,3.25543,3071.8,3071.5,0.55]
[1732137803637,3.25543,3071.8,3071.3,0.55]
[1732137803976,3.25552,3071.7,3071.1,0.55]
[1732137804176,3.25552,3071.7,3070.8,3.0]
[1732137804177,0.325552,3071.7,3070.8,3.0]
[1732137804381,0.325552,3071.7,3070.5,3.25679]
[1732137804382,3.25594,3071.4,3070.5,3.25679]
[1732137804673,3.25601,3071.3,3070.6,4.08431]
[1732137804872,3.25606,3071.2,3070.6,0.8277]
[1732137805184,3.25634,3071.0,3070.6,0.8277]
[1732137805479,3.25567,3071.6,3070.9,3.25635]
[1732137805480,3.25572,3071.6,3070.9,3.25635]
[1732137805678,3.25572,3071.6,3070.9,3.581985]
[1732137805977,3.25544,3071.8,3071.2,0.8277]
[1732137806177,3.25558,3071.7,3071.2,4.08367]
[1732137806346,3.25558,3071.7,3071.3,3.55]
[1732137806537,3.25558,3071.7,3071.3,0.55]
[1732137806839,4.04843,3072.3,3071.3,0.55]
[1732137807065,3.25559,3071.7,3071.3,0.55]
[1732137807478,3.25561,3071.7,3071.3,0.55]
[1732137807989,1.198341,3072.3,3070.7,4.02997]
[1732137807990,3.25596,3071.3,3070.7,4.02997]
[1732137808151,3.25569,3071.6,3070.8,0.0325612]
[1732137808487,1.79428082,3072.7,3071.0,0.7734]
[1732137808686,1.79428082,3072.7,3071.9,0.7734]
[1732137808687,3.25481,3072.4,3071.9,0.7734]
[1732137808902,1.01528082,3072.7,3071.9,0.7734]
[1732137808903,3.25457,3072.6,3071.9,0.7734]
[1732137809187,4.07292808,3072.7,3072.0,0.55]
[1732137809188,3.25475,3072.5,3072.0,0.55]
[1732137809365,3.25457,3072.6,3072.2,3.0]
[1732137809549,3.25447,3072.7,3072.2,3.0]
[1732137809550,3.25454,3072.7,3072.2,3.0]
[1732137809873,6.50865,3072.9,3072.3,3.25479]
[1732137810077,3.25431,3072.9,3072.4,4.05597]
[1732137810277,3.2541,3073.1,3072.5,3.58254563]
[1732137810440,6.50775,3073.3,3072.6,3.25455]
[1732137810640,3.25401,3073.2,3072.7,3.0]
[1732137810949,3.25464,3072.6,3072.4,0.8012]
[1732137811168,3.25438,3072.8,3072.4,0.8012]
[1732137811368,3.25467,3072.5,3072.4,0.8012]
[1732137811675,0.44000247,3073.2,3072.4,0.8012]
[1732137811980,10.38422249,3074.1,3072.4,0.8012]
[1732137811981,3.25426,3072.9,3072.4,0.8012]
[1732137812146,3.25438,3072.8,3072.4,0.8012]
[1732137812348,3.25426,3072.9,3072.4,4.05597]
[1732137812546,3.25426,3072.9,3072.4,0.8012]
[1732137812747,3.25426,3072.9,3072.4,3.8012]
[1732137812748,6.5086,3072.9,3072.4,3.8012]
[1732137812942,3.25401,3073.2,3072.5,3.80459]
[1732137813180,3.25401,3073.2,3072.7,3.25444]
[1732137813346,3.25394,3073.2,3072.6,3.0]
[1732137813545,3.25394,3073.2,3072.7,0.55]
[1732137813546,3.2541,3073.1,3072.7,0.55]
[1732137814143,3.25383,3073.3,3072.7,0.55]
[1732137814471,3.25407,3073.1,3072.6,0.55]
[1732137814657,3.2541,3073.1,3072.5,3.80459]
[1732137815280,3.25388,3073.3,3072.7,0.55]
[1732137815483,3.25395,3073.2,3072.7,0.55]
[1732137815861,3.25412,3073.1,3072.5,3.8046]
[1732137816388,3.25391,3073.3,3072.8,3.25429]
[1732137816690,3.25366,3073.5,3072.9,3.0]
[1732137816848,0.43136883,3074.3,3073.1,4.0712]
[1732137816849,3.25349,3073.7,3073.1,4.0712]
[1732137817048,4.07701,3073.9,3073.1,4.0712]
[1732137817049,0.45480742,3073.8,3073.2,3.25393]
[1732137817249,0.47116419,3074.4,3073.3,0.58253677]
[1732137817250,3.25289,3074.2,3073.3,0.58253677]
[1732137817554,3.25273,3074.4,3073.7,3.55]
[1732137817755,3.25273,3074.4,3073.9,3.25319]
[1732137817756,0.325274,3074.3,3073.9,3.25319]
[1732137818193,0.325274,3074.3,3074.0,3.25308]
[1732137818498,3.25262,3074.5,3073.9,3.80317]
[1732137818657,3.25249,3074.6,3073.9,3.80317]
[1732137818858,1.29836419,3074.8,3073.7,3.0]
[1732137818859,3.2527,3074.4,3073.8,0.55]
[1732137819157,3.25274,3074.4,3073.8,3.80328]
[1732137819493,0.47116419,3074.6,3073.8,0.55]
[1732137819494,3.25288,3074.2,3073.8,0.55]
[1732137819804,3.25266,3074.4,3073.8,3.8032]
[1732137820004,3.25266,3074.4,3073.7,0.55]
[1732137820290,3.25266,3074.4,3073.5,3.25352]
[1732137820291,3.25289,3074.2,3073.5,3.55]
[1732137820501,3.25308,3074.1,3073.5,6.80358]
[1732137820985,3.25265,3074.5,3073.9,3.25311]
[1732137821361,6.5053,3074.5,3073.9,3.25311]
[1732137821565,0.7821,3075.2,3073.9,3.25312]
[1732137821790,0.69794085,3075.1,3074.1,3.25297]
[1732137822089,0.69794085,3075.1,3074.2,6.25281]
[1732137822090,3.25229,3074.8,3074.2,6.25281]
[1732137822391,3.25187,3075.2,3074.4,0.8104]
[1732137822593,3.25203,3075.0,3074.5,3.25254]
[1732137822782,3.25187,3075.2,3074.5,3.25254]
[1732137823009,3.25172,3075.3,3074.6,0.03252193]
[1732137823157,0.143267,3075.4,3074.4,3.8104]
[1732137823489,3.25222,3074.9,3074.4,3.8104]
[1732137824159,3.25222,3074.9,3074.4,7.06304]
[1732137824305,0.143267,3075.4,3074.5,0.55]
[1732137824474,3.25209,3075.0,3074.5,0.55]
[1732137825106,3.25209,3075.0,3074.5,3.25254]
[1732137825388,3.25193,3075.1,3074.6,3.25245]
[1732137825715,3.25171,3075.3,3074.6,3.25245]
[1732137825996,3.25171,3075.3,3074.7,3.0]
[1732137826202,0.143267,3075.4,3074.8,0.625236]
[1732137826398,3.25175,3075.3,3074.8,0.625236]
[1732137826617,3.25175,3075.3,3074.8,3.877476]
[1732137826819,3.25186,3075.2,3074.8,0.625236]
[1732137827117,3.25183,3075.2,3074.8,0.625236]
[1732137827498,3.25197,3075.1,3074.8,0.625236]
[1732137827698,3.25197,3075.1,3074.5,6.7294149]
[1732137827997,3.25197,3075.1,3074.7,3.0]
[1732137828195,3.25197,3075.1,3074.7,3.67293549]
[1732137828400,3.25197,3075.1,3074.5,3.4769249]
[1732137828401,3.25204,3075.0,3074.5,3.4769249]
[1732137828623,3.25205,3075.0,3074.5,0.4769249]
[1732137828917,0.143267,3075.4,3074.5,3.0]
[1732137828918,3.25185,3075.2,3074.5,3.0]
[1732137829115,3.25216,3074.9,3074.5,3.0]
[1732137829314,3.25216,3074.9,3074.5,3.7063]
[1732137829723,3.25237,3074.7,3074.5,0.7063]
[1732137829894,3.25245,3074.6,3074.4,0.8104]
[1732137830093,4.25619752,3075.3,3073.7,0.8186]
[1732137830308,3.25273,3074.4,3073.8,0.66523666]
[1732137830509,0.7854,3075.3,3073.8,0.66523666]
[1732137830696,3.25195,3075.1,3073.9,0.13406976]
[1732137830897,3.25242,3074.7,3074.1,3.2529]
[1732137831107,3.25242,3074.7,3074.0,0.8084]
[1732137831108,3.25242,3074.7,3074.2,0.40613]
[1732137831417,3.25258,3074.5,3074.0,0.8084]
[1732137831621,3.25242,3074.7,3074.0,7.06142]
[1732137831825,3.25242,3074.7,3074.1,3.25297]
[1732137831993,3.25242,3074.7,3074.1,7.537341]
[1732137832189,3.25198,3075.1,3074.3,3.25274]
[1732137832518,0.143267,3075.4,3074.1,1.06397217]
[1732137832519,3.143267,3075.4,3074.1,1.06397217]
[1732137832725,3.143267,3075.4,3074.1,0.03252117]
[1732137832909,3.25215,3074.9,3074.3,3.2527]
[1732137833113,3.25215,3074.9,3074.3,3.58122212]
[1732137833426,3.25242,3074.7,3074.3,0.32852212]
[1732137833593,3.25256,3074.5,3074.0,3.8084]
[1732137833786,0.47079752,3075.2,3074.0,0.8084]
[1732137834000,3.7956336,3075.4,3074.3,3.25269]
[1732137834001,3.25214,3074.9,3074.3,3.25269]
[1732137834249,0.143267,3075.4,3074.4,3.577919]
[1732137834250,3.25192,3075.1,3074.4,3.577919]
[1732137834444,3.25192,3075.1,3074.5,3.25255]
[1732137834645,3.2522,3074.9,3074.4,0.325269]
[1732137834815,3.25224,3074.8,3074.3,3.25277]
[1732137835015,0.143267,3075.4,3074.5,3.2525]
[1732137835016,3.25199,3075.1,3074.5,3.2525]
[1732137835211,3.25199,3075.1,3074.4,4.0321]
[1732137835212,3.25214,3074.9,3074.6,0.72846]
[1732137835446,3.25214,3074.9,3074.4,0.7795]
[1732137835742,3.2524,3074.7,3074.4,0.7795]
[1732137835924,3.25256,3074.5,3074.4,0.7795]
[1732137836335,3.25191,3075.2,3074.4,4.03215]
[1732137836650,1.37536452,3075.4,3074.5,0.403215]
[1732137836651,3.25224,3074.8,3074.5,0.403215]
[1732137836948,3.25224,3074.8,3074.4,0.7795]
[1732137837517,3.25203,3075.0,3074.4,0.7795]
[1732137837716,0.904567,3075.4,3074.4,0.7795]
[1732137837717,3.25191,3075.2,3074.5,3.2525]
[1732137837918,3.25188,3075.2,3074.6,0.8019]
[1732137838221,3.394917,3075.4,3074.8,3.25223]
[1732137838418,3.25177,3075.3,3074.7,3.25231]
[1732137838657,3.25177,3075.3,3074.7,6.5046]
[1732137838949,3.25177,3075.3,3074.7,0.73065]
[1732137839130,3.25193,3075.1,3074.7,0.73065]
[1732137839327,3.25193,3075.1,3074.6,0.8019]
[1732137839328,0.143267,3075.4,3074.6,0.8019]
[1732137839652,0.143267,3075.4,3074.2,7.05469]
[1732137839653,3.25217,3074.9,3074.2,7.05469]
[1732137839816,3.25246,3074.6,3074.3,1.13229868]
[1732137840018,3.25256,3074.5,3074.4,0.10153868]
[1732137840219,0.47079752,3075.3,3074.2,0.8019]
[1732137840419,3.25219,3074.9,3074.3,3.35431641]
[1732137840622,3.25256,3074.5,3074.4,0.10154641]
[1732137841053,3.25256,3074.5,3074.2,0.8019]
[1732137841054,0.143267,3075.4,3074.3,3.25267]
[1732137841227,0.143267,3075.4,3074.4,3.658047]
[1732137841428,3.25189,3075.2,3074.6,3.25244]
[1732137841627,3.25219,3074.9,3074.3,3.25272]
[1732137841845,3.25219,3074.9,3074.4,3.35410637]
[1732137842042,6.50397,3075.1,3074.5,0.10153637]
[1732137842245,3.394897,3075.4,3074.7,3.25234]
[1732137842457,3.25184,3075.2,3074.8,0.10153637]
[1732137842659,0.143267,3075.4,3074.9,0.10153637]